bitfinex/quotes_SOLUSD_20241218
["timestamp","ask_amount","ask_price","bid_price","bid_amount"]
[1734494309479,11.13679734,217.72,217.65,11.13679734]
[1734494310410,11.13679734,217.68,217.61,12.76649734]
[1734494310711,11.13679734,217.68,217.61,1.6297]
[1734494310908,11.13679734,217.68,217.61,12.76649734]
[1734494311881,11.13679734,217.66,217.59,23.776884]
[1734494312494,11.4831,217.71,217.59,23.776884]
[1734494312691,11.13679734,217.67,217.59,34.91368134]
[1734494314693,11.13679734,217.65,217.58,6.0213]
[1734494315208,11.13679734,217.65,217.57,11.13679734]
[1734494315414,11.13679734,217.6,217.53,17.54909734]
[1734494315834,11.13679734,217.6,217.53,11.13679734]
[1734494316038,11.13679734,217.6,217.51,1.6105]
[1734494316039,11.13679734,217.59,217.51,12.74729734]
[1734494319004,11.13679734,217.61,217.53,11.13679734]
[1734494321423,11.13679734,217.6,217.52,11.13679734]
[1734494322337,11.13679734,217.61,217.53,11.13679734]
[1734494322627,22.27359434,217.61,217.53,11.13679734]
[1734494323409,22.27359434,217.61,217.55,11.13679734]
[1734494323616,11.13679734,217.64,217.57,11.13679734]
[1734494324008,22.27359434,217.64,217.57,11.13679734]
[1734494324813,22.27359434,217.64,217.56,11.13679734]
[1734494325022,11.13679734,217.63,217.55,11.13679734]
[1734494325229,11.13679734,217.63,217.56,11.13679734]
[1734494325449,22.27359434,217.64,217.56,11.13679734]
[1734494325617,11.13679734,217.63,217.56,11.13679734]
[1734494327911,11.13679734,217.63,217.52,23.776884]
[1734494328129,7.13077639,217.63,217.56,7.13077639]
[1734494329115,7.13077639,217.61,217.51,1.6105]
[1734494329440,7.13077639,217.59,217.51,8.74127639]
[1734494329959,29.72606008,217.64,217.51,1.6105]
[1734494330118,11.14576272,217.6,217.52,11.14576272]
[1734494334333,11.14576272,217.56,217.48,6.4123]
[1734494334534,11.14576272,217.54,217.47,1.5442]
[1734494334926,11.14576272,217.54,217.46,11.14576272]
[1734494335132,11.14576272,217.52,217.44,11.14576272]
[1734494335329,11.14576272,217.5,217.43,6.6566]
[1734494335519,11.14576272,217.5,217.42,12.68996272]
[1734494340742,11.14576272,217.5,217.42,11.14576272]
[1734494345324,11.14576272,217.44,217.37,1.5442]
[1734494345542,11.14576272,217.42,217.37,1.5442]
[1734494345940,11.14576272,217.42,217.33,6.1077]
[1734494346225,11.14576272,217.42,217.33,17.25346272]
[1734494346431,11.14576272,217.4,217.33,6.1077]
[1734494347852,11.14576272,217.4,217.31,11.14576272]
[1734494348638,11.14576272,217.4,217.26,0.69012216]
[1734494348639,11.14576272,217.36,217.29,11.14576272]
[1734494348844,11.4997,217.4,217.27,11.14576272]
[1734494348845,11.14576272,217.34,217.27,11.14576272]
[1734494349070,11.14576272,217.34,217.26,11.14576272]
[1734494349765,11.14576272,217.34,217.27,11.14576272]
[1734494350806,11.14576272,217.32,217.25,1.5417]
[1734494350957,11.14576272,217.31,217.25,1.5417]
[1734494351590,11.5007,217.38,217.29,11.14576272]
[1734494351744,11.14576272,217.37,217.29,11.14576272]
[1734494352195,11.14576272,217.35,217.28,11.14576272]
[1734494352368,11.14576272,217.33,217.26,11.14576272]
[1734494352779,11.14576272,217.31,217.24,11.14576272]
[1734494353297,11.14576272,217.32,217.25,11.14576272]
[1734494354483,22.64846272,217.35,217.27,11.14576272]
[1734494355275,11.14576272,217.36,217.29,11.14576272]
[1734494355900,11.14576272,217.35,217.27,11.14576272]
[1734494356184,14.2016873,217.39,217.24,23.776884]
[1734494356185,11.14576272,217.33,217.26,11.14576272]
[1734494356673,11.14576272,217.33,217.25,11.14576272]
[1734494357174,11.14576272,217.33,217.26,11.14576272]
[1734494357857,11.14576272,217.33,217.25,11.14576272]
[1734494358280,11.14576272,217.33,217.26,11.14576272]
[1734494359783,11.4998,217.4,217.29,11.14576272]
[1734494360088,11.14576272,217.39,217.32,11.14576272]
[1734494360792,11.14576272,217.4,217.32,11.14576272]
[1734494361000,11.14576272,217.41,217.33,11.14576272]
[1734494361204,11.14576272,217.42,217.35,11.14576272]
[1734494362797,11.14576272,217.41,217.34,11.14576272]
[1734494363175,11.14576272,217.43,217.35,11.14576272]
[1734494363386,11.14576272,217.43,217.36,11.14576272]
[1734494363699,11.14576272,217.43,217.35,11.14576272]
[1734494364612,11.14576272,217.42,217.35,11.14576272]
[1734494371138,11.14576272,217.42,217.33,23.776884]
[1734494371291,11.14576272,217.42,217.34,11.14576272]
[1734494377408,10.72238761,217.42,217.34,11.14576272]
[1734494378211,7.14494338,217.42,217.34,7.14494338]
[1734494379316,7.14494338,217.42,217.3,2.33304152]
[1734494379317,7.14494338,217.4,217.31,23.776884]
[1734494379519,7.14494338,217.4,217.31,30.92182738]
[1734494380594,7.14494338,217.38,217.24,7.22793216]
[1734494380794,7.14494338,217.36,217.28,7.14494338]
[1734494381204,7.14494338,217.37,217.29,7.14494338]
[1734494381722,20.0,217.42,217.3,7.14494338]
[1734494382023,7.14494338,217.39,217.31,7.14494338]
[1734494382221,11.4968,217.45,217.32,7.14494338]
[1734494382393,7.14494338,217.4,217.33,7.14494338]
[1734494386326,7.14494338,217.4,217.32,7.14494338]
[1734494387393,0.14494338,217.4,217.32,7.14494338]
[1734494388299,7.14494338,217.39,217.31,7.14494338]
[1734494389698,7.14494338,217.37,217.29,7.14494338]
[1734494391927,7.14494338,217.39,217.31,7.14494338]
[1734494392824,7.14494338,217.37,217.29,7.14494338]
[1734494393502,7.14494338,217.37,217.3,23.776884]
[1734494394732,7.14494338,217.35,217.3,23.776884]
[1734494395023,7.14494338,217.35,217.29,23.776884]
[1734494397048,7.14494338,217.35,217.27,23.776884]
[1734494397347,7.14494338,217.33,217.24,8.78984338]
[1734494397932,7.14494338,217.31,217.24,8.78984338]
[1734494398237,7.14494338,217.31,217.24,1.6449]
[1734494398725,7.14494338,217.32,217.25,23.776884]
[1734494399911,7.14494338,217.31,217.25,23.776884]
[1734494400341,7.14494338,217.3,217.25,23.776884]
[1734494401225,7.14494338,217.3,217.23,23.776884]
[1734494402422,7.14494338,217.28,217.21,7.14494338]
[1734494402621,7.14494338,217.29,217.22,7.14494338]
[1734494403120,11.5033,217.33,217.22,7.14494338]
[1734494403322,18.60366308,217.36,217.25,7.14494338]
[1734494403531,7.10206308,217.39,217.31,7.14494338]
[1734494403738,7.14494338,217.4,217.34,23.776884]
[1734494404342,11.4979,217.43,217.34,23.776884]
[1734494404343,7.14494338,217.41,217.34,30.92182738]
[1734494404641,7.14494338,217.42,217.35,7.14494338]
[1734494405144,7.10206308,217.45,217.36,7.14494338]
[1734494405313,7.14494338,217.42,217.35,7.14494338]
[1734494405725,7.14494338,217.44,217.37,7.14494338]
[1734494406119,7.14494338,217.43,217.36,7.14494338]
[1734494406335,8.68856308,217.5,217.38,7.14494338]
[1734494406639,7.14494338,217.47,217.4,7.14494338]
[1734494407137,7.14494338,217.49,217.42,7.14494338]
[1734494407451,7.10206308,217.53,217.44,7.14494338]
[1734494407615,7.10206308,217.54,217.45,7.14494338]
[1734494407816,7.14494338,217.52,217.45,7.14494338]
[1734494408044,7.14494338,217.51,217.44,7.14494338]
[1734494408242,7.14494338,217.47,217.4,7.14494338]
[1734494408436,7.10206308,217.54,217.41,7.14494338]
[1734494408624,7.14494338,217.5,217.43,7.14494338]
[1734494408826,7.10206308,217.55,217.43,7.14494338]
[1734494409025,7.14494338,217.51,217.43,7.14494338]
[1734494409532,7.14494338,217.5,217.43,7.14494338]
[1734494409837,7.14494338,217.49,217.39,20.0]
[1734494410042,7.14494338,217.44,217.36,6.5322]
[1734494410224,7.14494338,217.43,217.36,13.67714338]
[1734494410422,7.14494338,217.41,217.35,1.6256]
[1734494410817,7.14494338,217.39,217.32,7.14494338]
[1734494411035,7.14494338,217.4,217.33,7.14494338]
[1734494411233,7.14494338,217.41,217.33,7.14494338]
[1734494411447,7.14494338,217.4,217.31,6.5322]
[1734494411651,7.14494338,217.4,217.33,7.14494338]
[1734494412017,11.1656931,217.4,217.31,6.5322]
[1734494412219,20.0,217.44,217.33,11.1656931]
[1734494412432,11.1656931,217.4,217.33,11.1656931]
[1734494412743,11.1656931,217.36,217.3,1.6256]
[1734494412959,11.1656931,217.36,217.28,11.1656931]
[1734494413162,11.1656931,217.34,217.27,11.1656931]
[1734494413348,11.1656931,217.31,217.24,12.7912931]
[1734494413658,11.1656931,217.3,217.24,1.6256]
[1734494414019,11.1656931,217.27,217.19,11.1656931]
[1734494414237,11.1656931,217.27,217.2,11.1656931]
[1734494414444,11.1656931,217.28,217.21,11.1656931]
[1734494414620,11.1656931,217.27,217.2,11.1656931]
[1734494415322,11.1656931,217.27,217.19,11.1656931]
[1734494415644,25.08756308,217.35,217.18,2.1664887]
[1734494415645,11.1656931,217.24,217.18,2.1664887]
[1734494415849,11.1656931,217.26,217.18,13.3321818]
[1734494416027,11.1656931,217.27,217.2,11.1656931]
[1734494416356,11.1656931,217.28,217.21,11.1656931]
[1734494416643,11.1656931,217.28,217.2,11.1656931]
[1734494417148,11.1656931,217.27,217.2,11.1656931]
[1734494418443,11.1656931,217.28,217.2,11.1656931]
[1734494419849,11.1656931,217.27,217.2,11.1656931]
[1734494420619,11.1656931,217.26,217.19,11.1656931]
[1734494421049,11.1656931,217.26,217.18,13.3321818]
[1734494421926,11.1656931,217.26,217.19,11.1656931]
[1734494422850,11.1656931,217.26,217.18,13.3321818]
[1734494423051,11.1656931,217.26,217.18,0.5408887]
[1734494423345,11.1656931,217.23,217.18,0.5408887]
[1734494423517,41.61326308,217.32,217.18,0.5408887]
[1734494423518,11.1656931,217.26,217.19,11.1656931]
[1734494424932,11.1656931,217.24,217.18,0.5408887]
[1734494426651,11.1656931,217.25,217.18,0.5408887]
[1734494426825,11.1656931,217.26,217.19,11.1656931]
[1734494427977,1.5865,217.34,217.23,11.1656931]
[1734494428126,11.1656931,217.31,217.24,11.1656931]
[1734494428635,11.1656931,217.25,217.18,0.5408887]
[1734494428951,11.1656931,217.24,217.18,0.5408887]
[1734494429321,11.1656931,217.23,217.18,0.5408887]
[1734494430127,11.1656931,217.2,217.18,0.5408887]
[1734494430327,11.1656931,217.25,217.18,0.5408887]
[1734494430328,11.1656931,217.19,217.18,0.5408887]
[1734494430837,11.1656931,217.2,217.18,0.5408887]
[1734494431345,11.1656931,217.19,217.18,0.5408887]
[1734494433222,20.0,217.15,217.05,1.6347]
[1734494433446,11.1656931,217.14,217.06,11.1656931]
[1734494434046,20.0,217.15,217.05,11.1656931]
[1734494434047,11.1656931,217.12,217.05,11.1656931]
[1734494434353,11.1656931,217.07,217.0,439.25749795]
[1734494435031,11.1656931,217.05,217.0,428.09180485]
[1734494436147,11.1656931,217.04,217.0,428.09180485]
[1734494436360,11.1656931,217.01,217.0,428.09180485]
[1734494436526,11.1656931,217.02,217.0,428.09180485]
[1734494437358,11.1656931,217.01,217.0,428.09180485]
[1734494437658,17.6880931,217.01,217.0,394.01742357]
[1734494440254,17.6880931,217.01,217.0,388.55332357]
[1734494440469,17.6880931,217.01,217.0,376.06982357]
[1734494440770,6.5224,217.01,217.0,336.21481786]
[1734494441092,17.6880931,217.01,217.0,336.21481786]
[1734494441245,17.6880931,217.01,217.0,178.02831786]
[1734494441578,18.1513931,217.01,217.0,141.31061786]
[1734494442660,18.1513931,217.01,217.0,134.76321786]
[1734494443352,18.1513931,217.01,217.0,131.06551786]
[1734494443565,18.1513931,217.01,217.0,126.93961786]
[1734494443867,20.95876297,217.01,217.0,114.83771786]
[1734494444035,20.49546297,217.01,217.0,106.48451786]
[1734494444235,20.49546297,217.01,217.0,71.56728424]
[1734494444440,20.49546297,217.01,217.0,54.99148424]
[1734494444734,20.49546297,217.01,217.0,39.94638424]
[1734494445251,20.49546297,217.01,217.0,32.76988424]
[1734494446166,20.49546297,217.01,217.0,15.78328424]
[1734494446463,20.0,216.98,216.97,0.5408887]
[1734494446650,31.1656931,216.98,216.97,0.5408887]
[1734494452152,2.80736987,217.01,216.97,0.5408887]
[1734494452471,11.1656931,216.99,216.97,0.5408887]
[1734494453246,11.1656931,216.98,216.97,0.5408887]
[1734494456356,11.1656931,216.98,216.9,140.0]
[1734494456663,11.1656931,216.97,216.9,151.1656931]
[1734494457376,11.5213,216.98,216.91,11.1656931]
[1734494457377,22.6869931,216.98,216.91,11.1656931]
[1734494457561,22.6869931,216.98,216.91,10.1656931]
[1734494458362,11.1656931,216.97,216.9,151.1656931]
[1734494458764,22.6869931,216.98,216.9,151.1656931]
[1734494458964,11.1656931,216.97,216.9,140.0]
[1734494459164,22.6869931,216.98,216.9,151.1656931]
[1734494460159,22.6869931,216.98,216.91,11.1656931]
[1734494460362,11.1656931,217.01,216.94,11.1656931]
[1734494460879,11.1656931,216.99,216.93,6.3779]
[1734494461992,11.1656931,216.99,216.92,11.1656931]
[1734494461993,11.1656931,216.96,216.9,140.0]
[1734494462485,11.1656931,216.97,216.9,140.0]
[1734494463975,11.1656931,216.99,216.91,11.1656931]
[1734494464283,20.0,216.96,216.91,11.1656931]
[1734494464858,20.0,216.96,216.92,11.1656931]
[1734494465094,18.421717,217.02,216.94,11.1656931]
[1734494465095,29.5874101,217.02,216.94,11.1656931]
[1734494465254,29.5874101,217.02,216.95,11.1656931]
[1734494465458,29.5874101,217.02,216.94,11.1656931]
[1734494465874,29.5874101,217.02,216.9,140.0]
[1734494465875,11.1656931,217.02,216.95,11.1656931]
[1734494466570,11.1656931,217.02,216.94,11.1656931]
[1734494467083,11.1656931,217.0,216.93,11.1656931]
[1734494467265,11.1656931,216.99,216.92,11.1656931]
[1734494467470,11.1656931,216.98,216.91,11.1656931]
[1734494467686,11.1656931,216.97,216.9,140.0]
[1734494467868,11.1656931,216.95,216.9,140.0]
[1734494468270,35.0225,217.02,216.9,140.0]
[1734494468586,11.1656931,216.91,216.9,140.0]
[1734494468891,11.1656931,216.91,216.9,136.706]
[1734494469184,46.4680771,216.91,216.9,3.23844335]
[1734494469490,20.0,216.87,216.76,140.0]
[1734494469790,34.9425771,216.86,216.76,140.0]
[1734494470008,34.9425771,216.86,216.76,151.1656931]
[1734494470213,11.1656931,216.86,216.81,1.5656]
[1734494470381,11.1656931,216.89,216.82,11.1656931]
[1734494470570,2.71892686,216.94,216.85,0.0001]
[1734494470571,20.0,216.86,216.85,0.0001]
[1734494471210,31.5281,216.86,216.85,0.0001]
[1734494472187,55.304984,216.86,216.85,0.0001]
[1734494472489,55.304984,216.86,216.76,140.0]
[1734494472490,23.776884,216.81,216.76,140.0]
[1734494472693,34.9425771,216.77,216.76,140.0]
[1734494473077,11.1656931,216.77,216.76,140.0]
[1734494473283,20.0,216.82,216.76,140.0]
[1734494473284,11.1656931,216.79,216.76,140.0]
[1734494473683,20.0,216.82,216.76,140.0]
[1734494473684,11.1656931,216.81,216.76,140.0]
[1734494474085,11.1656931,216.83,216.76,140.0]
[1734494474674,11.1656931,216.85,216.77,11.1656931]
[1734494478085,20.0,216.82,216.77,11.1656931]
[1734494478301,11.1656931,216.85,216.77,11.1656931]
[1734494479574,11.1656931,216.87,216.8,6.5806]
[1734494479975,11.1656931,216.89,216.81,12.6990931]
[1734494480877,11.1656931,216.89,216.83,11.1656931]
[1734494481280,11.1656931,216.94,216.87,11.1656931]
[1734494481477,11.1656931,216.94,216.86,11.1656931]
[1734494482294,18.421257,217.03,216.88,11.1656931]
[1734494482503,11.1656931,216.93,216.85,11.1656931]
[1734494482708,11.1656931,216.92,216.84,11.1656931]
[1734494482914,11.1656931,216.9,216.83,11.1656931]
[1734494483203,11.1656931,216.89,216.81,1.5334]
[1734494483406,11.5214,216.99,216.81,1.5334]
[1734494483407,11.1656931,216.88,216.81,1.5334]
[1734494483605,11.1656931,216.87,216.81,1.5334]
[1734494483777,11.1656931,216.88,216.81,1.5334]
[1734494484175,11.1656931,216.85,216.81,1.5334]
[1734494484586,11.1656931,216.87,216.81,1.5334]
[1734494485508,11.1656931,216.84,216.81,1.5334]
[1734494490813,13.67766308,216.95,216.81,1.5334]
[1734494491009,11.1656931,216.88,216.81,1.5334]
[1734494491914,11.1656931,216.86,216.81,1.5334]
[1734494492489,11.1656931,216.85,216.81,1.5334]
[1734494492718,11.1656931,216.83,216.81,1.5334]
[1734494492888,2.79432361,216.89,216.81,1.5334]
[1734494492889,11.1656931,216.84,216.81,1.5334]
[1734494494441,14.32112361,216.89,216.76,157.7462931]
[1734494494442,11.1656931,216.82,216.76,157.7462931]
[1734494494815,11.1656931,216.85,216.78,11.1656931]
[1734494495128,11.1656931,216.85,216.77,11.1656931]
[1734494495537,11.1656931,216.83,216.76,146.5806]
[1734494498921,11.1656931,216.85,216.77,11.1656931]
[1734494501927,20.0,216.86,216.77,11.1656931]
[1734494502096,11.1656931,216.86,216.79,11.1656931]
[1734494502720,11.1656931,216.92,216.83,11.1656931]
[1734494502924,11.1656931,216.92,216.85,12.7404931]
[1734494503295,11.1656931,216.92,216.85,1.5748]
[1734494503498,11.1656931,216.86,216.79,1.5748]
[1734494504608,11.1656931,216.86,216.79,12.7404931]
[1734494506195,11.1656931,216.86,216.79,1.5748]
[1734494508007,11.1656931,216.86,216.76,146.5806]
[1734494508008,11.1656931,216.84,216.76,140.0]
[1734494508207,11.1656931,216.8,216.76,140.0]
[1734494508809,11.1656931,216.78,216.76,140.0]
[1734494509209,11.1656931,216.77,216.76,140.0]
[1734494511208,20.0,216.69,216.54,11.1656931]
[1734494511404,11.1656931,216.63,216.54,11.1656931]
[1734494511609,10.6656931,216.63,216.54,11.1656931]
[1734494512023,17.99591407,216.63,216.54,17.99591407]
[1734494512224,17.99591407,216.63,216.48,140.0]
[1734494512419,17.99591407,216.63,216.62,103.26585802]
[1734494513027,17.99591407,216.63,216.62,94.72385802]
[1734494513238,17.99591407,216.63,216.62,78.94348074]
[1734494513439,18.83607645,216.63,216.62,67.83738074]
[1734494513626,18.83607645,216.63,216.62,62.92888074]
[1734494513940,20.0,216.59,216.48,140.0]
[1734494514144,17.99591407,216.54,216.48,140.0]
[1734494515618,17.99591407,216.55,216.48,140.0]
[1734494516837,17.99591407,216.55,216.53,8.87e-05]
[1734494517037,17.99591407,216.54,216.53,8.87e-05]
[1734494521372,17.99591407,216.55,216.53,8.87e-05]
[1734494522171,17.99591407,216.57,216.53,8.87e-05]
[1734494522828,11.5409,216.62,216.53,8.87e-05]
[1734494523029,17.99591407,216.59,216.53,8.87e-05]
[1734494523336,17.99591407,216.6,216.54,23.776884]
[1734494523534,17.99591407,216.62,216.56,23.776884]
[1734494523742,18.83607645,216.63,216.56,23.776884]
[1734494523948,17.99591407,216.64,216.56,41.77279807]
[1734494524147,17.995914,216.64,216.59,23.776884]
[1734494524340,17.99591407,216.68,216.6,41.77279807]
[1734494524785,17.995914,216.68,216.62,23.776884]
[1734494524940,17.995914,216.68,216.63,17.99591407]
[1734494525131,17.99591407,216.72,216.66,23.776884]
[1734494525652,17.99591407,216.74,216.66,41.77279807]
[1734494525951,17.99591407,216.74,216.68,23.776884]
[1734494526365,17.99591407,216.76,216.68,41.77279807]
[1734494526575,17.99591407,216.7,216.68,23.776884]
[1734494526883,17.99591407,216.69,216.61,25.345684]
[1734494527079,17.995914,216.77,216.61,1.5688]
[1734494527241,11.534,216.75,216.61,1.5688]
[1734494527447,17.99591407,216.66,216.61,1.5688]
[1734494528146,17.99591407,216.65,216.61,1.5688]
[1734494529377,17.99591407,216.7,216.48,160.72990216]
[1734494529378,17.99591407,216.62,216.54,1.5688]
[1734494529671,17.99591407,216.6,216.54,1.5688]
[1734494530575,17.99591407,216.62,216.55,23.776884]
[1734494531848,17.99591407,216.6,216.55,23.776884]
[1734494532401,17.99591407,216.6,216.54,1.5688]
[1734494532567,20.0,216.57,216.54,1.5688]
[1734494532773,17.99591407,216.56,216.54,1.5688]
[1734494533090,17.99591407,216.55,216.53,8.87e-05]
[1734494535075,5.48159426,216.64,216.53,8.87e-05]
[1734494535387,17.99591407,216.59,216.54,23.776884]
[1734494535591,17.99591407,216.59,216.53,1.5688887]
[1734494536056,17.99591407,216.57,216.53,1.5688887]
[1734494536464,17.99591407,216.56,216.53,1.5688887]
[1734494537257,17.99591407,216.54,216.53,8.87e-05]
[1734494538879,17.99591407,216.56,216.53,8.87e-05]
[1734494539078,17.99591407,216.57,216.53,8.87e-05]
[1734494539260,17.99591407,216.55,216.53,8.87e-05]
[1734494541150,29.54101407,216.55,216.53,8.87e-05]
[1734494541800,17.99591407,216.54,216.53,8.87e-05]
[1734494543062,17.99591407,216.5,216.48,140.0]
[1734494544400,29.54321407,216.5,216.48,140.0]
[1734494544572,17.99591407,216.52,216.48,140.0]
[1734494544897,17.99591407,216.53,216.48,140.0]
[1734494545197,6.2202,216.58,216.48,140.0]
[1734494545198,17.99591407,216.49,216.48,140.0]
[1734494548486,17.99591407,216.52,216.48,140.0]
[1734494548667,17.99591407,216.53,216.48,140.0]
[1734494549289,17.99591407,216.52,216.48,140.0]
[1734494549791,17.99591407,216.53,216.48,140.0]
[1734494550011,11.25591145,216.53,216.48,140.0]
[1734494550313,11.25591145,216.57,216.5,11.25591145]
[1734494550662,11.25591145,216.57,216.51,11.25591145]
[1734494550862,11.25591145,216.57,216.5,11.25591145]
[1734494551404,11.25591145,216.59,216.52,11.25591145]
[1734494551565,11.25591145,216.58,216.51,11.25591145]
[1734494551962,18.00107152,216.58,216.51,18.00107152]
[1734494552181,2.80693822,216.65,216.55,41.77795552]
[1734494552386,18.00107152,216.62,216.56,23.776884]
[1734494552572,18.00107152,216.63,216.56,41.77795552]
[1734494552761,18.00107152,216.62,216.56,23.776884]
[1734494553573,18.00107152,216.62,216.55,18.00107152]
[1734494553783,18.00107152,216.58,216.52,23.776884]
[1734494553975,18.00107152,216.57,216.51,23.776884]
[1734494554487,18.00107152,216.57,216.5,18.00107152]
[1734494554699,18.00107152,216.56,216.49,25.64817152]
[1734494554869,11.5398,216.64,216.49,25.64817152]
[1734494554870,18.00107152,216.58,216.5,18.00107152]
[1734494555189,18.00107152,216.57,216.5,18.00107152]
[1734494555869,18.00107152,216.56,216.49,25.64817152]
[1734494556214,18.00107152,216.56,216.5,23.776884]
[1734494556762,11.5416,216.61,216.5,41.77795552]
[1734494556763,18.00107152,216.57,216.5,41.77795552]
[1734494556958,11.5416,216.61,216.5,41.77795552]
[1734494556959,18.00107152,216.59,216.52,41.77795552]
[1734494557267,2.80693822,216.65,216.55,18.00107152]
[1734494557268,18.00107152,216.62,216.55,18.00107152]
[1734494557498,18.00107152,216.58,216.5,41.77795552]
[1734494557987,18.00107152,216.59,216.51,18.00107152]
[1734494558171,18.00107152,216.59,216.52,23.776884]
[1734494558794,18.00107152,216.6,216.53,41.77795552]
[1734494558963,18.00107152,216.6,216.5,23.776884]
[1734494558964,18.00107152,216.61,216.55,23.776884]
[1734494559159,14.34643822,216.65,216.55,23.776884]
[1734494559365,18.00107152,216.59,216.55,23.776884]
[1734494559570,18.00107152,216.6,216.53,41.77795552]
[1734494559992,14.34643822,216.65,216.53,23.776884]
[1734494559993,18.00107152,216.59,216.53,23.776884]
[1734494560166,18.00107152,216.59,216.52,23.776884]
[1734494561102,18.00107152,216.58,216.52,23.776884]
[1734494561310,18.00107152,216.6,216.52,23.776884]
[1734494561595,18.00107152,216.6,216.53,18.00107152]
[1734494561897,18.00107152,216.6,216.54,23.776884]
[1734494562276,18.00107152,216.63,216.55,18.00107152]
[1734494562473,18.00107152,216.63,216.56,23.776884]
[1734494563293,18.00107152,216.63,216.56,41.77795552]
[1734494564187,18.00107152,216.65,216.58,41.77795552]
[1734494564392,18.00107152,216.66,216.59,18.00107152]
[1734494564696,18.00107152,216.66,216.6,23.776884]
[1734494565072,18.00107152,216.69,216.62,41.77795552]
[1734494566271,11.5355,216.73,216.62,41.77795552]
[1734494566272,18.00107152,216.7,216.63,18.00107152]
[1734494566489,18.00107152,216.69,216.62,41.77795552]
[1734494566697,18.00107152,216.7,216.63,18.00107152]
[1734494567001,18.00107152,216.71,216.64,23.776884]
[1734494568709,18.00107152,216.71,216.64,41.77795552]
[1734494569489,18.00107152,216.69,216.64,23.776884]
[1734494569691,18.00107152,216.68,216.61,24.47627152]
[1734494570127,18.00107152,216.68,216.62,23.776884]
[1734494570704,18.00107152,216.67,216.61,6.4752]
[1734494570891,18.00107152,216.65,216.61,6.4752]
[1734494571092,18.00107152,216.62,216.57,1.6324]
[1734494571795,18.00107152,216.63,216.57,1.6324]
[1734494571993,11.24558651,216.63,216.57,1.6324]
[1734494576224,11.24558651,216.61,216.54,23.776884]
[1734494577339,11.24558651,216.63,216.55,11.24558651]
[1734494577699,11.24558651,216.63,216.56,23.776884]
[1734494580302,11.24558651,216.62,216.55,23.776884]
[1734494581303,11.24558651,216.61,216.55,23.776884]
[1734494582018,11.24558651,216.62,216.55,23.776884]
[1734494582218,11.24558651,216.63,216.55,35.02247051]
[1734494582418,11.24558651,216.62,216.55,23.776884]
[1734494582625,11.24558651,216.61,216.55,23.776884]
[1734494582929,11.24558651,216.6,216.52,11.24558651]
[1734494583105,11.24558651,216.57,216.51,23.776884]
[1734494583317,11.24558651,216.57,216.5,1.6763]
[1734494583515,11.24558651,216.56,216.5,1.6763]
[1734494584424,11.24558651,216.57,216.5,1.6763]
[1734494584620,22.78878651,216.58,216.5,12.92188651]
[1734494586444,11.24558651,216.57,216.5,1.6763]
[1734494586620,11.24558651,216.56,216.5,1.6763]
[1734494587532,11.24558651,216.57,216.5,1.6763]
[1734494589724,11.24558651,216.57,216.5,12.92188651]
[1734494590035,11.24558651,216.57,216.5,1.6763]
[1734494591040,11.24558651,216.57,216.51,11.24558651]
[1734494591551,11.24558651,216.61,216.53,11.24558651]
[1734494591858,11.24558651,216.59,216.52,11.24558651]
[1734494592640,11.24558651,216.58,216.51,23.776884]
[1734494592957,11.24558651,216.58,216.5,12.92188651]
[1734494593346,11.24558651,216.56,216.5,1.6763]
[1734494593831,11.24558651,216.55,216.5,1.6763]
[1734494596158,11.24558651,216.57,216.5,1.6763]
[1734494596859,11.24558651,216.59,216.52,11.24558651]
[1734494597348,11.24558651,216.6,216.52,11.24558651]
[1734494599746,11.24558651,216.6,216.53,11.24558651]
[1734494599950,11.5382,216.68,216.56,11.24558651]
[1734494600170,11.24558651,216.66,216.59,11.24558651]
[1734494600649,11.5382,216.68,216.51,24.46951523]
[1734494600650,11.24558651,216.65,216.58,11.24558651]
[1734494600849,11.24558651,216.66,216.59,11.24558651]
[1734494602168,11.24558651,216.61,216.54,11.24558651]
[1734494602341,11.24558651,216.59,216.52,11.24558651]
[1734494602539,11.24558651,216.57,216.5,12.92188651]
[1734494602742,11.24558651,216.55,216.5,1.6763]
[1734494603277,0.6744,216.63,216.48,140.0]
[1734494603278,11.24558651,216.53,216.48,140.0]
[1734494603491,11.24558651,216.5,216.48,140.0]
[1734494604274,11.545,216.55,216.48,140.0]
[1734494604275,11.24558651,216.53,216.48,140.0]
[1734494604439,11.24558651,216.51,216.48,140.0]
[1734494604636,11.24558651,216.5,216.48,140.0]
[1734494605060,11.24558651,216.49,216.48,140.0]
[1734494607469,11.24558651,216.5,216.48,140.0]
[1734494607655,20.0,216.53,216.48,140.0]
[1734494607856,11.24558651,216.54,216.48,140.0]
[1734494608077,11.24558651,216.53,216.48,140.0]
[1734494608283,11.24558651,216.54,216.48,140.0]